fUSD/lending_fUSD_20240125
["ID","MTS","AMOUNT","RATE_DAILY","PERIOD"]
[312701331,1706164244552,-150.0,0.00039383,2]
[312701332,1706164244562,-150.0,0.00039386,2]
[312701333,1706164244571,-150.0,0.00039395,2]
[312701334,1706164244580,-150.0,0.00039398,2]
[312701335,1706164244589,-150.0,0.00039399,2]
[312701336,1706164244598,-200.0,0.00039404,7]
[312701337,1706164244607,-800.0,0.00039404,8]
[312701338,1706164244616,-800.0,0.00039405,8]
[312701339,1706164244627,-800.0,0.00039405,8]
[312701340,1706164244641,-800.0,0.00039405,8]
[312701341,1706164244651,-150.0,0.00039407,2]
[312701342,1706164244661,-150.0,0.00039412,2]
[312701343,1706164244671,-150.0,0.00039441,2]
[312701344,1706164244680,-150.0,0.00039449,2]
[312701345,1706164244689,-150.0,0.00039459,2]
[312701346,1706164244698,-1500.0,0.00039465,2]
[312701347,1706164244711,-150.0,0.00039465,2]
[312701348,1706164244721,-150.0,0.00039492,2]
[312701349,1706164244731,-150.0,0.00039506,2]
[312701350,1706164244741,-303.07343434,0.00039515,2]
[312701351,1706164244750,-150.0,0.00039522,2]
[312701352,1706164244759,-150.0,0.0003953,2]
[312701353,1706164244769,-150.0,0.00039541,2]
[312701354,1706164244779,-10000.0,0.00039543,2]
[312701355,1706164244788,-176.54,0.00039548,2]
[312701356,1706164244797,-151.55292424,0.00039565,2]
[312701357,1706164244806,-150.0,0.00039575,2]
[312701358,1706164244816,-150.0,0.0003958,2]
[312701359,1706164244826,-150.0,0.00039594,2]
[312701360,1706164244835,-150.0,0.00039606,2]
[312701361,1706164244846,-150.0,0.00039609,2]
[312701362,1706164244856,-150.0,0.00039626,2]
[312701363,1706164245004,-150.0,0.00039646,2]
[312701364,1706164245014,-150.0,0.00039647,2]
[312701365,1706164245022,-150.0,0.00039647,2]
[312701366,1706164245032,-150.0,0.00039661,2]
[312701367,1706164245041,-895.36953783,0.00039673,2]
[312701368,1706164245049,-150.0,0.00039692,2]
[312701369,1706164245059,-1181.28,0.00039698,2]
[312701370,1706164245069,-150.0,0.00039699,2]
[312701371,1706164245078,-1435.61754201,0.000397,2]
[312701372,1706164245087,-1028.0,0.000397,7]
[312701373,1706164245096,-500.0,0.000397,2]
[312701374,1706164245105,-150.0,0.00039708,2]
[312701375,1706164245114,-150.0,0.00039712,2]
[312701376,1706164245123,-1507.86985392,0.00039715,2]
[312701377,1706164245355,-1290.40709603,0.00039715,2]
[312701378,1706164245366,-2535.24263838,0.00039718,2]
[312701379,1706164245385,-854.39192302,0.00039718,2]
[312701380,1706164245394,-35292.91062894,0.00039718,2]
[312701381,1706164245414,-3211.65223706,0.00039718,2]
[312701382,1706164245434,-1500.0,0.00039718,2]
[312701383,1706164246731,-3367.89929556,0.00031998,4]
[312701384,1706164246741,-25637.97354728,0.00039718,2]
[312701385,1706164246771,-2609.23511465,0.00039718,2]
[312701386,1706164247153,-1033.40313034,0.00039718,2]
[312701387,1706164247169,-3332.40761419,0.00039718,2]
[312701388,1706164247187,-299.975,0.00039718,2]
[312701393,1706165211159,-681.14677288,0.00021879,2]
[312701394,1706165290499,155.14082571,0.00019691,2]
[312701395,1706165293823,4170.3233911,0.00016409,2]
[312701396,1706165297264,393.15011915,0.000216,2]
[312701397,1706165313819,4170.3233911,0.00016409,2]
[312701398,1706165330190,4170.3233911,0.00016409,2]
[312701399,1706165340900,403.043601,0.00021547,2]
[312701400,1706165345833,4170.3233911,0.00016409,2]
[312701401,1706165352168,155.0,0.00016409,2]
[312701402,1706165352195,235.18894409,0.00016409,2]
[312701403,1706165352500,155.0,0.00016409,2]
[312701404,1706165355331,260.17747455,0.00016409,2]
[312701405,1706165356882,155.0,0.00016409,2]
[312701406,1706165357547,155.0,0.00016409,2]
[312701407,1706165358033,858.05378955,0.00016409,2]
[312701408,1706165359374,156.99494214,0.00016409,2]
[312701409,1706165359911,361.65945006,0.00016409,2]
[312701410,1706165361031,6092.94367433,0.00016409,2]
[312701411,1706165361849,774.72951885,0.00012307,2]
[312701412,1706165361900,155.0,0.00016409,2]
[312701413,1706165361944,5198.49724003,0.00016409,2]
[312701414,1706165361971,886.39651552,0.00016409,2]
[312701415,1706165362017,284.6471464,0.00016409,2]
[312701416,1706165362045,283.58804531,0.00016409,2]
[312701417,1706165362468,1199.49514891,0.00016409,2]
[312701418,1706165362494,17794.58321741,0.00016409,2]
[312701419,1706165362535,1896.63619876,0.00016409,2]
[312701420,1706165362566,1121.39167921,0.00016409,2]
[312701421,1706165365288,292.53883539,0.00016409,2]
[312701422,1706165365319,1046.8266157,0.00016408,2]
[312701423,1706165366555,1051.75289646,0.00016408,2]
[312701424,1706165370159,155.0,0.00016409,2]
[312701425,1706165370192,235.18894409,0.00016409,2]
[312701426,1706165370544,155.0,0.00016409,2]
[312701427,1706165372147,155.0,0.00016409,2]
[312701428,1706165373333,260.17747455,0.00016409,2]
[312701429,1706165373458,156.88369332,0.00016409,2]
[312701430,1706165373912,361.65945006,0.00016409,2]
[312701431,1706165373951,221.63129537,0.00016409,2]
[312701432,1706165374535,1121.39167921,0.00016409,2]
[312701433,1706165374894,150.0,0.00020658,2]
[312701434,1706165376032,284.6471464,0.00016409,2]
[312701435,1706165376476,18994.07836632,0.00016409,2]
[312701436,1706165376590,150.0,0.00021206,2]
[312701437,1706165376790,6092.94367433,0.00016409,2]
[312701438,1706165376886,236.18728594,0.00016409,2]
[312701439,1706165378026,697.56047907,0.00016409,2]
[312701440,1706165378535,1896.63619876,0.00016409,2]
[312701441,1706165381288,292.53883539,0.00016409,2]
[312701442,1706165381826,155.0,0.00016409,2]
[312701443,1706165382119,5198.49724003,0.00016409,2]
[312701444,1706165386199,163.70427861,0.00016409,2]
[312701445,1706165390511,155.0,0.00016409,2]
[312701446,1706165391353,260.17747455,0.00016409,2]
[312701447,1706165391526,155.0,0.00016409,2]
[312701448,1706165391909,290.9543154,0.00016409,2]
[312701449,1706165392169,159.63373352,0.00016409,2]
[312701450,1706165392471,2236.44749945,0.00016409,2]
[312701451,1706165392495,2659.75068877,0.00016409,2]
[312701452,1706165392550,267.87008142,0.00016409,2]
[312701453,1706165394026,282.14645384,0.00016409,2]
[312701454,1706165396806,1919.25755793,0.00016409,2]
[312701455,1706165400537,508.28077615,0.00016409,2]
[312701456,1706165401933,5198.49724003,0.00016409,2]
[312701457,1706165402498,150.0,0.00016409,2]
[312701458,1706165402667,150.0,0.00016409,2]
[312701459,1706165402838,150.0,0.00016409,2]
[312701460,1706165403000,150.0,0.00016409,2]
[312701461,1706165403718,251.48951119,0.00016409,2]
[312701462,1706165403761,292.53883539,0.00016409,2]
[312701463,1706165408510,157.75271122,0.00016409,2]
[312701464,1706165411529,224.63428457,0.00016409,2]
[312701465,1706165413605,260.17747455,0.00016409,2]
[312701466,1706165417942,5198.49724003,0.00016409,2]
[312701467,1706165421318,292.53883539,0.00016409,2]
[312701469,1706165431337,260.17747455,0.00016409,2]
[312701471,1706165433916,-179.84269497,0.00021642,2]
[312701472,1706165433936,-108.28690503,0.00021642,2]
[312701473,1706165433952,-453.09797714,0.00021642,2]
[312701474,1706165433962,-497.11830631,0.00021642,2]
[312701475,1706165433989,-677.95451397,0.00021642,2]
[312701476,1706165434011,-190.5250684,0.00021642,2]
[312701477,1706165434021,-361.3216315,0.00021643,2]
[312701478,1706165434030,-525.90736384,0.00021643,2]
[312701479,1706165434040,-1419.12284278,0.00021643,2]
[312701480,1706165434050,-51.05968695,0.00021643,2]
[312701481,1706165434079,5198.49724003,0.00016409,2]
[312701482,1706165434105,-333.00815705,0.00021643,2]
[312701483,1706165434117,-104.7417384,0.00021643,2]
[312701484,1706165434127,-1000.0,0.00021644,2]
[312701485,1706165434137,-5594.3239939,0.00021644,2]
[312701486,1706165434173,-7437.44928571,0.00021644,2]
[312701487,1706165434183,-458.44816547,0.00021645,2]
[312701488,1706165434192,-4642.46190579,0.00021645,2]
[312701489,1706165434202,-502.11703257,0.00021645,2]
[312701490,1706165434212,-327.72615975,0.00021645,2]
[312701491,1706165434222,-2737.02161925,0.00021645,2]
[312701492,1706165434338,-1460.75587726,0.00021645,2]
[312701493,1706165434354,-401.69517999,0.00021645,2]
[312701494,1706165434365,-2172.92551066,0.00021645,2]
[312701495,1706165434395,-3328.95,0.00021645,2]
[312701498,1706165437308,218.37505923,0.00016409,2]
[312701501,1706165437386,-33414.03953836,0.00021643,2]
[312701502,1706165437397,-467.20095139,0.00021645,2]
[312701503,1706165437585,-155.0,0.00021645,2]
[312701504,1706165437595,-2506.67933284,0.00021645,2]
[312701505,1706165437604,-295.89802556,0.00021645,2]
[312701506,1706165437613,-731.88024959,0.00021645,2]
[312701507,1706165437623,-622.85925909,0.00021645,2]
[312701508,1706165437632,-2605.35682131,0.00021645,2]
[312701509,1706165437642,-270.45745944,0.00021646,2]
[312701510,1706165437652,-4632.53528402,0.00021646,2]
[312701511,1706165437661,-161.88839056,0.00021647,2]
[312701512,1706165437670,-760.01872237,0.00021647,2]
[312701513,1706165437679,-3194.72146129,0.00021647,2]
[312701514,1706165437688,-1814.35883876,0.00021648,2]
[312701515,1706165437698,-690.49430514,0.00021649,2]
[312701516,1706165437707,-868.30882633,0.00021649,2]
[312701517,1706165437716,-155.0,0.00021649,2]
[312701518,1706165437726,-1048.28635536,0.00021649,2]
[312701519,1706165437735,-1052.84485333,0.00021649,2]
[312701520,1706165437744,-406.94668334,0.00021649,2]
[312701521,1706165437753,-913.52532653,0.00021657,2]
[312701522,1706165437762,-156.67599687,0.00021658,2]
[312701523,1706165437772,-2183.24893448,0.0002166,2]
[312701524,1706165437781,-8357.41,0.0002166,14]
[312701525,1706165437790,-150.0,0.00021754,2]
[312701526,1706165437800,-300.0,0.0002178,2]
[312701527,1706165437809,-181.32871301,0.00021857,2]
[312701528,1706165437818,-1438.0,0.00021876,2]
[312701529,1706165437828,-4371.25535607,0.00021877,2]
[312701530,1706165437837,-2141.45861552,0.00021878,2]
[312701531,1706165437846,-2326.29487449,0.00021879,2]
[312701532,1706165437855,-1098.1329655,0.00021879,2]
[312701533,1706165437865,-866.35117666,0.00021879,2]
[312701534,1706165437874,-284.10923497,0.00021879,2]
[312701535,1706165437884,-847.87371304,0.00021879,2]
[312701536,1706165437893,-257.17849573,0.00021879,2]
[312701537,1706165437903,-336.20359972,0.00021879,2]
[312701538,1706165437912,-209.40231751,0.00021879,2]
[312701539,1706165437922,-500.0,0.00021879,2]
[312701540,1706165437931,-155.3886016,0.00021879,2]
[312701541,1706165437941,-155.41925835,0.00021879,2]
[312701542,1706165437950,-159.33223768,0.00021889,2]
[312701543,1706165437960,-150.0,0.00021988,2]
[312701544,1706165437969,-203.82466641,0.0002199,2]
[312701545,1706165437979,-286.47968424,0.00022302,2]
[312701546,1706165437989,-202.0,0.00022977,2]
[312701547,1706165438001,-203.0,0.00022977,2]
[312701548,1706165438011,-284.18,0.00024237,3]
[312701549,1706165438021,-250.0,0.0002429,2]
[312701550,1706165438030,-203.0,0.0002452,4]
[312701551,1706165438040,-2500.0,0.00024611,3]
[312701552,1706165438050,-2000.0,0.00024758,2]
[312701553,1706165438060,-7851.5,0.00024764,2]
[312701554,1706165438071,-202.0,0.00025622,6]
[312701555,1706165438081,-250.0,0.00025837,2]
[312701556,1706165438091,-500.0,0.00026,2]
[312701557,1706165438100,-203.0,0.00026062,6]
[312701558,1706165438109,-1707.76302595,0.0002725,2]
[312701559,1706165438119,-165.27,0.00027397,2]
[312701560,1706165438129,-203.0,0.00027605,9]
[312701561,1706165438138,-396.35493025,0.00027812,2]
[312701562,1706165438148,-22635.3430364,0.00027814,2]
[312701563,1706165438159,-150.0,0.00027918,2]
[312701564,1706165438169,-10254.0,0.00028,2]
[312701565,1706165438178,-419.96246939,0.00028079,2]
[312701566,1706165438188,-155.70351298,0.00028093,2]
[312701567,1706165438197,-155.07841659,0.00028093,2]
[312701568,1706165438207,-519.53858399,0.00028093,2]
[312701569,1706165438216,-313.96037993,0.00028093,2]
[312701570,1706165438226,-155.37493691,0.00028093,2]
[312701571,1706165438235,-475.58193424,0.00028093,2]
[312701572,1706165438245,-250.07775368,0.00028093,2]
[312701573,1706165438254,-3332.39700873,0.00028093,2]
[312701574,1706165438264,-203.69012396,0.00028094,2]
[312701575,1706165438274,-654.57060524,0.00028094,2]
[312701576,1706165438283,-524.62089788,0.00028094,2]
[312701577,1706165438292,-260.44164068,0.00028094,2]
[312701578,1706165438301,-9773.96755312,0.00028094,2]
[312701579,1706165438311,-337.96960043,0.00028095,2]
[312701580,1706165438320,-337.50548863,0.00028095,2]
[312701581,1706165438329,-4276.78305022,0.00028095,2]
[312701582,1706165438338,-4251.93051247,0.00028095,2]
[312701583,1706165438348,-19088.56406841,0.00028095,2]
[312701584,1706165438357,-4397.51825088,0.00028095,2]
[312701585,1706165438366,-155.09083798,0.00028095,2]
[312701586,1706165438375,-282.86047326,0.00028095,2]
[312701587,1706165438385,-2633.31053282,0.00028095,2]
[312701588,1706165438394,-3057.86969194,0.00028095,2]
[312701589,1706165438406,-177.59230134,0.00028095,2]
[312701590,1706165438415,-303.94188026,0.00028095,2]
[312701591,1706165438425,-155.00011422,0.00028095,2]
[312701592,1706165438435,-524.41305345,0.00028096,2]
[312701593,1706165438444,-290.55959811,0.00028096,2]
[312701594,1706165438454,-499.99,0.00028096,2]
[312701595,1706165438463,-38029.63432817,0.00028097,2]
[312701596,1706165438472,-1046.49412238,0.00028098,2]
[312701597,1706165438481,-155.35242651,0.00028098,2]
[312701598,1706165438490,-1124.63119894,0.00028098,2]
[312701599,1706165438499,-1864.81523161,0.00028099,2]
[312701600,1706165438509,-3141.0,0.000281,2]
[312701601,1706165438519,-165.27,0.0002818,2]
[312701602,1706165438528,-202.0,0.00028266,10]
[312701603,1706165438538,-50944.89436917,0.0002895,2]
[312701604,1706165438547,-165.27,0.00028963,2]
[312701605,1706165438556,-203.0,0.00029148,11]
[312701606,1706165438565,-2078.69,0.00029232,2]
[312701607,1706165438574,-5834.73728447,0.00029339,2]
[312701608,1706165438583,-165.27,0.00029746,2]
[312701609,1706165438592,-155.0,0.0003,2]
[312701610,1706165438601,-734.74285332,0.0003,4]
[312701611,1706165438630,-11817.25542095,0.0003,4]
[312701612,1706165438639,-583.45307407,0.0003,2]
[312701613,1706165438650,-112445.52478632,0.0003,4]
[312701614,1706165439099,-522.6128635,0.00021641,2]
[312701615,1706165439110,-253.89399304,0.00021641,2]
[312701616,1706165439151,-858.74623956,0.00021641,2]
[312701618,1706165439162,-462.2961555,0.00021641,2]
[312701706,1706165440055,-536.594,0.00021641,2]
[312701723,1706165440202,-5160.39646789,0.00021641,2]
[312701725,1706165440211,-174.54808239,0.00021641,2]
[312701727,1706165440221,-690.49430514,0.00021641,2]
[312701729,1706165440231,-121829.72534302,0.0003,4]
[312701731,1706165440240,-9652.53351491,0.0003,2]
[312701732,1706165440249,-694.51811641,0.0003,2]
[312701734,1706165440259,-165.27,0.00030528,2]
[312701736,1706165440268,-203.0,0.0003069,14]
[312701737,1706165440277,-202.0,0.00030911,14]
[312701738,1706165440286,-165.27,0.00031311,2]
[312701739,1706165440296,-180.0,0.00031644,2]
[312701741,1706165440305,-165.27,0.00032094,2]
[312701743,1706165440314,-203.0,0.00032233,16]
[312701744,1706165440323,-165.27,0.00032877,2]
[312701745,1706165440333,-184.21,0.00032877,15]
[312701746,1706165440342,-202.0,0.00033555,18]
[312701747,1706165440351,-203.0,0.00033776,18]
[312701748,1706165440361,-1000.0,0.00034,4]
[312701749,1706165440370,-335.88,0.00034256,2]
[312701750,1706165440379,-23900.0,0.00034341,2]
[312701751,1706165440389,-194.96,0.00034413,2]
[312701752,1706165440398,-213.73,0.00034458,2]
[312701753,1706165440409,-250.0,0.00034458,2]
[312701754,1706165440418,-150.0,0.00034548,10]
[312701755,1706165440570,-4571.14,0.00034662,2]
[312701756,1706165440580,-187.37,0.00034866,2]
[312701757,1706165440589,-1000.0,0.00034866,2]
[312701758,1706165440598,-203.0,0.00035318,21]
[312701759,1706165440607,-1360.0,0.00035751,2]
[312701760,1706165440616,-898.172,0.00035751,2]
[312701761,1706165440625,-387.0,0.00035751,2]
[312701762,1706165440634,-837.0,0.00035751,2]
[312701763,1706165440643,-1857.035,0.00035751,2]
[312701764,1706165440653,-1857.0,0.00035751,2]
[312701765,1706165440663,-947.0,0.00035751,2]
[312701766,1706165440672,-158.265,0.00035751,2]
[312701767,1706165440682,-1257.375,0.00035751,2]
[312701768,1706165440690,-451.189,0.00035751,2]
[312701769,1706165440700,-214.0,0.00035751,2]
[312701770,1706165440709,-427.0,0.00035751,2]
[312701771,1706165440718,-236.0,0.00035751,2]
[312701772,1706165440727,-1934.0,0.00035751,2]
[312701773,1706165440737,-997.0,0.00035751,2]
[312701774,1706165440746,-864.0,0.00035751,2]
[312701775,1706165440755,-509.0,0.00035751,2]
[312701776,1706165440764,-1138.0,0.00035751,2]
[312701777,1706165440773,-319.0,0.00035751,2]
[312701778,1706165440782,-2910.0,0.00035751,2]
[312701779,1706165440791,-1046.948,0.00035751,2]
[312701780,1706165440801,-2277.0,0.00035751,2]
[312701781,1706165440809,-3692.33017024,0.00035751,2]
[312701819,1706165444441,-408.52199517,0.0003,2]
[312701821,1706165444451,-408.52199517,0.0003,2]
[312701823,1706165444460,-408.52199517,0.0003,2]
[312701825,1706165444469,-491.16,0.00035709,2]
[312701827,1706165444479,-7316.82244044,0.00035751,2]
[312701829,1706165444493,-8727.84738932,0.00035751,2]
[312701831,1706165444503,-3720.7888836,0.00035751,2]
[312701832,1706165444515,-462.2111164,0.00035751,2]
[312701833,1706165444525,-3952.40220687,0.00035751,2]
[312701834,1706165444537,-995.52379313,0.00035751,2]
[312701835,1706165444546,-1031.0,0.00035751,2]
[312701836,1706165444555,-371.2,0.000359,2]
[312701837,1706165444564,-787.52,0.000359,2]
[312701838,1706165444574,-164.0,0.00036,2]
[312701839,1706165444584,-194.96,0.00036057,2]
[312701840,1706165444593,-62.37173996,0.000362,22]
[312701841,1706165444605,-139.62826004,0.000362,22]
[312701842,1706165444615,-184.21,0.00036613,15]
[312701843,1706165444624,-200.0,0.0003685,5]
[312701844,1706165444633,-203.0,0.00036861,23]
[312701845,1706165444643,-167.81,0.00036906,2]
[312701846,1706165444652,-156.62,0.00036946,2]
[312701847,1706165444665,-628.8,0.00036983,2]
[312701848,1706165444674,-2065.1627895,0.00037,2]
[312701849,1706165444686,-418.25586025,0.00037,2]
[312701850,1706165444701,-10532.9802582,0.00037,2]
[312701851,1706165444777,-1267.53629767,0.00037,2]
[312701852,1706165444867,-2265.54595803,0.00037,2]
[312701853,1706165444876,-1821.26,0.00037623,5]
[312701854,1706165444885,-1703.85507072,0.000377,5]
[312701855,1706165444897,-122.47492928,0.000377,5]
[312701856,1706165444906,-519.75393177,0.000377,5]
[312701857,1706165444922,-1270.88606823,0.000377,5]
[312701858,1706165444931,-88.73721775,0.000377,5]
[312701859,1706165445569,-1728.42278225,0.000377,5]
[312701860,1706165445586,-924.58615581,0.000377,5]
[312701861,1706165445607,-879.63384419,0.000377,5]
[312701862,1706165445625,-153.57,0.000377,3]
[312701863,1706165445642,-246.94,0.000377,3]
[312701864,1706165445659,-246.94,0.000377,3]
[312701865,1706165445678,-246.94,0.000377,3]
[312701866,1706165445696,-246.94,0.000377,3]
[312701867,1706165445708,-246.94,0.000377,3]
[312701868,1706165445723,-246.94,0.000377,3]
[312701869,1706165445741,-246.94,0.000377,3]
[312701870,1706165445756,-246.94,0.000377,3]
[312701871,1706165445770,-246.94,0.000377,3]
[312701872,1706165445785,-246.94,0.000377,3]
[312701873,1706165445799,-246.94,0.000377,3]
[312701874,1706165445815,-10.82283215,0.000377,3]
[312701881,1706165446332,274.11565518,0.00016409,2]
[312701882,1706165446396,-236.11716785,0.000377,3]
[312701883,1706165446412,-246.94,0.000377,3]
[312701884,1706165446427,-246.94,0.000377,3]
[312701885,1706165446442,-246.94,0.000377,3]
[312701886,1706165446458,-246.94,0.000377,3]
[312701887,1706165446473,-246.94,0.000377,3]
[312701888,1706165446488,-246.94,0.000377,3]
[312701889,1706165446503,-246.94,0.000377,3]
[312701890,1706165446518,-203.0822799,0.000377,3]
[312701891,1706165446551,-43.8577201,0.000377,3]
[312701892,1706165446565,-194.96,0.00037701,2]
[312701893,1706165446579,-151.90559164,0.00037732,2]
[312701894,1706165446594,-1091.51,0.00037991,2]
[312701895,1706165446608,-2042.52,0.00038146,2]
[312701896,1706165446623,-150.0,0.00038356,2]
[312701897,1706165446638,-11.12034739,0.00038403,26]
[312701898,1706165446655,-191.87965261,0.00038403,26]
[312701899,1706165446671,-1000.0,0.00038651,15]
[312701900,1706165446686,-907.172,0.00038751,2]
[312701901,1706165446701,-837.0,0.00038751,2]
[312701902,1706165446713,-874.62615569,0.00038751,2]
[312701903,1706165446733,-663.47784431,0.00038751,2]
[312701904,1706165446742,-947.0,0.00038751,2]
[312701905,1706165446751,-426.0,0.00038751,2]
[312701906,1706165446761,-73.27251926,0.00038751,2]
[312701907,1706165448102,-162.72748074,0.00038751,2]
[312701908,1706165448112,-864.0,0.00038751,2]
[312701909,1706165448122,-509.0,0.00038751,2]
[312701910,1706165448131,-1138.0,0.00038751,2]
[312701911,1706165448141,-319.0,0.00038751,2]
[312701912,1706165448151,-301.76629072,0.00038751,2]
[312701913,1706165448162,-444.52502043,0.00038751,2]
[312701914,1706165448354,-2163.70868885,0.00038751,2]
[312701915,1706165448363,-2277.0,0.00038751,2]
[312701916,1706165448373,-19737.0,0.00038751,2]
[312701917,1706165448382,-999.78333405,0.00038751,2]
[312701918,1706165448393,-3183.21666595,0.00038751,2]
[312701919,1706165448402,-1031.0,0.00038751,2]
[312701920,1706165448412,-202.0,0.00038844,26]
[312701921,1706165448421,-154.22402446,0.0003888,2]
[312701922,1706165448430,-282.26694691,0.0003898,2]
[312701923,1706165448439,-1430.03686544,0.00039,2]
[312701924,1706165448449,-170.8,0.0003926,2]
[312701925,1706165448459,-150.0,0.0003931,20]
[312701926,1706165448467,-5000.0,0.00039316,3]
[312701927,1706165448476,-8788.09370009,0.00039321,2]
[312701928,1706165448488,-322.8916,0.00039321,2]
[312701929,1706165448508,-6970.01469991,0.00039321,2]
[312701930,1706165448517,-2059.5358014,0.00039323,11]
[312701931,1706165448527,-176.54,0.0003933,2]
[312701932,1706165448537,-510.25693767,0.0003933,2]
[312701933,1706165448546,-194.96,0.00039345,2]
[312701934,1706165448556,-150.0,0.00039366,2]
[312701935,1706165448565,-157.8747961,0.00039403,7]
[312701936,1706165448577,-42.1252039,0.00039403,7]
[312701937,1706165448586,-800.0,0.00039403,8]
[312701938,1706165448595,-154.4,0.0003949,2]
[312701939,1706165448605,-1014.28,0.000396,2]
[312701940,1706165448614,-336.66238632,0.00039618,2]
[312701941,1706165448626,-756.25222284,0.00039618,2]
[312701942,1706165448635,-71.38418154,0.00039618,2]
[312701943,1706165449162,4820.16377603,0.00016409,2]
[312701944,1706165450871,2327.90429692,0.0002,2]
[312701945,1706165451827,2183.24893448,0.0002,2]
[312701946,1706165453202,847.87371304,0.0002,2]
[312701948,1706165457499,500.0,0.000185,2]
[312701951,1706165465107,18962.79635292,0.00021003,2]
[312701952,1706165465134,664.28338721,0.00021003,2]
[312701955,1706165480555,8779.41018182,9e-05,2]
[312701956,1706165486288,1528.4806991,0.00018,2]
[312701957,1706165492260,625.26756519,0.0001,2]
[312701958,1706165495118,1646.10123477,0.0002,2]
[312701959,1706165514374,23394.23674058,6.94e-05,2]
[312701962,1706165568468,3467.02898842,0.00021002,2]
[312701964,1706165587443,272.96,0.0002087,2]
[312701965,1706165590755,205.0,9.8e-05,2]
[312701966,1706165594328,4921.98175515,0.0001305,2]
[312701967,1706165594790,239.02711294,0.000101,2]
[312701968,1706165612297,154.45611634,0.00021536,2]
[312701969,1706165620040,1488.20223343,0.0002,2]
[312701970,1706165629449,1629.5718043,0.000181,2]
[312701971,1706165636459,352.59978188,0.0002,2]
[312701972,1706165648509,1000.0,0.000135,2]
[312701973,1706165648623,282.89720068,0.000125,2]
[312701974,1706165662027,703.04,0.00021366,2]
[312701975,1706165665589,205.85805261,0.0001,2]
[312701976,1706165680258,174.97,0.00016712,2]
[312701977,1706165684415,2183.24893448,0.00021152,2]
[312701978,1706165689754,847.87371304,0.00021366,2]
[312701979,1706165695562,165.56,0.00021361,2]
[312701982,1706165702365,1407.56193097,0.00021152,2]
[312701983,1706165705750,481.60493764,0.00021366,2]
[312701984,1706165715646,200.0,0.00021361,2]
[312701985,1706165719486,4247.44,0.00021414,2]
[312701987,1706165727434,382.1587,0.00021539,2]
[312701989,1706165740636,180.48,0.00021386,2]
[312701990,1706165762260,192.94,0.00021414,2]
[312701991,1706165765150,161.46,0.00021574,2]
[312701992,1706165777464,23900.0,0.00021396,2]
[312701993,1706165778053,2078.69,0.00021396,2]
[312701999,1706165815070,2000.0,0.00021359,2]
[312702000,1706165815411,731.88024959,0.00021619,2]
[312702001,1706165815567,7851.5,0.00021359,2]
[312702002,1706165817778,3194.72146129,0.00021619,2]
[312702003,1706165826125,2605.35682131,0.00021619,2]
[312702004,1706165828092,3864.89732564,0.00021619,2]
[312702005,1706165828162,201.36530184,0.00021511,2]
[312702006,1706165832049,175.93222141,0.00021618,2]
[312702007,1706165832614,361.3216315,0.00021619,2]
[312702008,1706165832841,524.74840027,0.00021619,2]
[312702009,1706165833071,690.49430514,0.00021619,2]
[312702010,1706165833101,155.0,0.00021404,2]
[312702011,1706165833183,174.54808239,0.00021619,2]
[312702012,1706165833409,289.36230214,0.00021619,2]
[312702013,1706165833453,731.88024959,0.00021,2]
[312702014,1706165833917,281.61083133,0.00021404,2]
[312702015,1706165834373,155.0,0.00021619,2]
[312702016,1706165834637,614.91362653,0.00021574,2]
[312702017,1706165834767,868.30882633,0.00021619,2]
[312702018,1706165835570,233.51822103,0.00021619,2]